[Event "Titled Tuesday Blitz August 3 2021"]
[White "Laxman, R.R."]
[Black "Nguyen, Hong Anh"]
[WhiteFideId "5005361"]
[BlackFideId "12406732"]
[WhiteElo "2476"]
[BlackElo "1974"]
[Result "0-1"]
[Round "02"]
[TimeControl "180+1"]
[Date "2021.08.03"]
[WhiteClock "0:01:55"]
[BlackClock "0:00:45"]

1. d4 {[%clk 0:03:00]}  Nf6 {[%clk 0:02:56]} 2. Nf3 {[%clk 0:03:00]}  g6 {[%clk 0:02:57]} 3. c4 {[%clk 0:02:58]}  Bg7 {[%clk 0:02:57]} 4. Nc3 {[%clk 0:02:58]}  d5 {[%clk 0:02:58]} 5. cxd5 {[%clk 0:02:57]}  Nxd5 {[%clk 0:02:59]} 6. e4 {[%clk 0:02:58]}  Nxc3 {[%clk 0:02:59]} 7. bxc3 {[%clk 0:02:59]}  c5 {[%clk 0:02:59]} 8. Rb1 {[%clk 0:03:00]}  O-O {[%clk 0:02:58]} 9. Be2 {[%clk 0:03:00]}  Nc6 {[%clk 0:02:59]} 10. d5 {[%clk 0:02:59]}  Ne5 {[%clk 0:03:00]} 11. Nxe5 {[%clk 0:02:59]}  Bxe5 {[%clk 0:03:01]} 12. Bd2 {[%clk 0:03:00]}  e6 {[%clk 0:03:01]} 13. c4 {[%clk 0:02:58]}  exd5 {[%clk 0:03:01]} 14. cxd5 {[%clk 0:02:58]}  b6 {[%clk 0:03:00]} 15. O-O {[%clk 0:02:57]}  Re8 {[%clk 0:02:58]} 16. Kh1 {[%clk 0:02:56]}  Bd4 {[%clk 0:02:55]} 17. Bd3 {[%clk 0:02:51]}  c4 {[%clk 0:02:43]} 18. Bxc4 {[%clk 0:02:45]}  Rxe4 {[%clk 0:02:42]} 19. Qc2 {[%clk 0:02:44]}  Re8 {[%clk 0:02:34]} 20. Bc3 {[%clk 0:02:37]}  Bf5 {[%clk 0:02:30]} 21. Bd3 {[%clk 0:02:30]}  Bxd3 {[%clk 0:02:27]} 22. Qxd3 {[%clk 0:02:29]}  Bxc3 {[%clk 0:02:27]} 23. Qxc3 {[%clk 0:02:30]}  Qxd5 {[%clk 0:02:27]} 24. a4 {[%clk 0:02:28]}  Rac8 {[%clk 0:02:23]} 25. Qb4 {[%clk 0:02:25]}  Rc4 {[%clk 0:02:17]} 26. Qb3 {[%clk 0:02:25]}  Qc5 {[%clk 0:02:11]} 27. Qb5 {[%clk 0:02:16]}  Rc8 {[%clk 0:02:05]} 28. Qd7 {[%clk 0:02:16]}  Rc7 {[%clk 0:02:03]} 29. Qe8+ {[%clk 0:02:15]}  Kg7 {[%clk 0:02:03]} 30. Rbd1 {[%clk 0:02:14]}  Qe7 {[%clk 0:01:55]} 31. Qb5 {[%clk 0:02:12]}  R7c5 {[%clk 0:01:52]} 32. Qb2+ {[%clk 0:02:11]}  Qf6 {[%clk 0:01:51]} 33. Qb3 {[%clk 0:02:12]}  Rc3 {[%clk 0:01:49]} 34. Qb4 {[%clk 0:02:11]}  Rc2 {[%clk 0:01:43]} 35. Kg1 {[%clk 0:02:07]}  Rf5 {[%clk 0:01:34]} 36. Qe1 {[%clk 0:02:01]}  Re5 {[%clk 0:01:29]} 37. Qb4 {[%clk 0:01:59]}  Ree2 {[%clk 0:01:27]} 38. Qd4 {[%clk 0:01:57]}  Qxd4 {[%clk 0:01:16]} 39. Rxd4 {[%clk 0:01:58]}  Ra2 {[%clk 0:01:17]} 40. g3 {[%clk 0:01:56]}  Kf6 {[%clk 0:01:08]} 41. Rf4+ {[%clk 0:01:55]}  Ke6 {[%clk 0:01:07]} 42. Rc1 {[%clk 0:01:56]}  f5 {[%clk 0:00:57]} 43. Rc7 {[%clk 0:01:55]}  g5 {[%clk 0:00:49]} 44. Rf3 {[%clk 0:01:55]}  g4 {[%clk 0:00:48]} 45. Rf4 {[%clk 0:01:54]}  Re1+ {[%clk 0:00:45]} 46. Kg2 {[%clk 0:01:55]}  Raa1 {[%clk 0:00:45]} 0-1


[Site "https://www.chess.com"]

[Event "Titled Tuesday Blitz August 3 2021"]
[White "Lee, Qing Aun"]
[Black "Rasulov, Vugar"]
[WhiteFideId "5804167"]
[BlackFideId "13402390"]
[WhiteElo "2023"]
[BlackElo "2553"]
[Result "0-1"]
[Round "02"]
[TimeControl "180+1"]
[Date "2021.08.03"]
[WhiteClock "0:00:08"]
[BlackClock "0:00:44"]

1. e4 {[%clk 0:03:00]}  e5 {[%clk 0:02:59]} 2. Nf3 {[%clk 0:02:58]}  Nc6 {[%clk 0:03:00]} 3. Bb5 {[%clk 0:02:56]}  a6 {[%clk 0:03:00]} 4. Ba4 {[%clk 0:02:56]}  Nf6 {[%clk 0:03:00]} 5. O-O {[%clk 0:02:55]}  b5 {[%clk 0:03:01]} 6. Bb3 {[%clk 0:02:55]}  Bc5 {[%clk 0:03:01]} 7. c3 {[%clk 0:02:44]}  d6 {[%clk 0:03:01]} 8. d4 {[%clk 0:02:38]}  Bb6 {[%clk 0:03:01]} 9. h3 {[%clk 0:02:33]}  h6 {[%clk 0:02:59]} 10. Re1 {[%clk 0:02:27]}  O-O {[%clk 0:02:58]} 11. a4 {[%clk 0:02:21]}  Bb7 {[%clk 0:02:56]} 12. Na3 {[%clk 0:02:09]}  exd4 {[%clk 0:02:53]} 13. cxd4 {[%clk 0:02:08]}  Re8 {[%clk 0:02:54]} 14. d5 {[%clk 0:01:36]}  Na5 {[%clk 0:02:42]} 15. Bc2 {[%clk 0:01:35]}  bxa4 {[%clk 0:02:40]} 16. Be3 {[%clk 0:01:28]}  Nb3 {[%clk 0:02:26]} 17. Bxb3 {[%clk 0:01:22]}  axb3 {[%clk 0:02:27]} 18. Bxb6 {[%clk 0:01:21]}  cxb6 {[%clk 0:02:28]} 19. Qd3 {[%clk 0:01:20]}  b5 {[%clk 0:02:23]} 20. Nd4 {[%clk 0:01:19]}  Qb6 {[%clk 0:02:07]} 21. Nf5 {[%clk 0:01:14]}  Bc8 {[%clk 0:02:04]} 22. Nd4 {[%clk 0:01:08]}  Bd7 {[%clk 0:02:00]} 23. Nxb3 {[%clk 0:01:07]}  Re7 {[%clk 0:02:01]} 24. Nc2 {[%clk 0:01:04]}  Rae8 {[%clk 0:02:01]} 25. Nd2 {[%clk 0:01:04]}  a5 {[%clk 0:01:56]} 26. Re3 {[%clk 0:01:00]}  a4 {[%clk 0:01:42]} 27. Nb4 {[%clk 0:00:53]}  Qc5 {[%clk 0:01:39]} 28. Na6 {[%clk 0:00:46]}  Qb6 {[%clk 0:01:34]} 29. Nb4 {[%clk 0:00:46]}  Rc8 {[%clk 0:01:34]} 30. Kh2 {[%clk 0:00:43]}  Be8 {[%clk 0:01:30]} 31. Nf3 {[%clk 0:00:38]}  Nd7 {[%clk 0:01:29]} 32. Nd4 {[%clk 0:00:35]}  Ne5 {[%clk 0:01:27]} 33. Qd1 {[%clk 0:00:34]}  Rc4 {[%clk 0:01:24]} 34. Nf5 {[%clk 0:00:30]}  Rec7 {[%clk 0:01:22]} 35. Nd3 {[%clk 0:00:29]}  Nxd3 {[%clk 0:01:19]} 36. Qxd3 {[%clk 0:00:28]}  Bd7 {[%clk 0:01:18]} 37. Rae1 {[%clk 0:00:19]}  Rc2 {[%clk 0:01:15]} 38. Rg3 {[%clk 0:00:17]}  Bxf5 {[%clk 0:01:09]} 39. exf5 {[%clk 0:00:17]}  Qxf2 {[%clk 0:00:53]} 40. Re8+ {[%clk 0:00:15]}  Kh7 {[%clk 0:00:53]} 41. f6+ {[%clk 0:00:15]}  g6 {[%clk 0:00:53]} 42. Rf8 {[%clk 0:00:12]}  Qxf6 {[%clk 0:00:49]} 43. Qe3 {[%clk 0:00:11]}  Qe7 {[%clk 0:00:44]} 44. Qxe7 {[%clk 0:00:07]}  Rxe7 {[%clk 0:00:45]} 45. Rb8 {[%clk 0:00:08]}  Rxb2 {[%clk 0:00:44]} 0-1


[Site "https://www.chess.com"]

[Event "Titled Tuesday Blitz August 3 2021"]
[White "Maltsevskaya, Aleksandra"]
[Black "Savchenko, Boris"]
[WhiteFideId "24174041"]
[BlackFideId "4147332"]
[WhiteElo "2225"]
[BlackElo "2542"]
[Result "0-1"]
[Round "02"]
[TimeControl "180+1"]
[Date "2021.08.03"]
[WhiteClock "0:00:03"]
[BlackClock "0:00:57"]

1. e4 {[%clk 0:03:00]}  c5 {[%clk 0:02:58]} 2. Nf3 {[%clk 0:03:00]}  d6 {[%clk 0:02:59]} 3. d4 {[%clk 0:03:01]}  cxd4 {[%clk 0:03:00]} 4. Nxd4 {[%clk 0:03:02]}  Nf6 {[%clk 0:03:01]} 5. f3 {[%clk 0:03:02]}  g6 {[%clk 0:03:00]} 6. c4 {[%clk 0:03:01]}  Bg7 {[%clk 0:03:00]} 7. Nc3 {[%clk 0:03:02]}  Nc6 {[%clk 0:03:01]} 8. Be3 {[%clk 0:03:02]}  O-O {[%clk 0:03:01]} 9. Be2 {[%clk 0:03:01]}  Bd7 {[%clk 0:02:58]} 10. O-O {[%clk 0:03:02]}  Qb6 {[%clk 0:02:58]} 11. Na4 {[%clk 0:02:04]}  Qa5 {[%clk 0:02:50]} 12. Nxc6 {[%clk 0:02:02]}  Bxc6 {[%clk 0:02:49]} 13. Nc3 {[%clk 0:02:03]}  Nd7 {[%clk 0:02:45]} 14. Nd5 {[%clk 0:01:57]}  Bxd5 {[%clk 0:02:43]} 15. cxd5 {[%clk 0:01:53]}  Bxb2 {[%clk 0:02:24]} 16. Rb1 {[%clk 0:01:53]}  Qa3 {[%clk 0:02:21]} 17. Qd3 {[%clk 0:01:00]}  b6 {[%clk 0:02:12]} 18. Rxb2 {[%clk 0:00:45]}  Qxb2 {[%clk 0:02:11]} 19. Bd4 {[%clk 0:00:46]}  Qb4 {[%clk 0:02:05]} 20. Rb1 {[%clk 0:00:44]}  Qa4 {[%clk 0:02:05]} 21. Bd1 {[%clk 0:00:39]}  Qa5 {[%clk 0:01:58]} 22. Qe3 {[%clk 0:00:14]}  Rfc8 {[%clk 0:01:53]} 23. Bb3 {[%clk 0:00:13]}  Nc5 {[%clk 0:01:17]} 24. h4 {[%clk 0:00:10]}  Nxb3 {[%clk 0:01:16]} 25. axb3 {[%clk 0:00:11]}  Rc2 {[%clk 0:01:12]} 26. Qh6 {[%clk 0:00:08]}  f6 {[%clk 0:01:10]} 27. h5 {[%clk 0:00:08]}  Qd2 {[%clk 0:01:09]} 28. Qxd2 {[%clk 0:00:01]}  Rxd2 {[%clk 0:01:09]} 29. Be3 {[%clk 0:00:02]}  Re2 {[%clk 0:01:08]} 30. Bf2 {[%clk 0:00:01]}  Rc8 {[%clk 0:01:06]} 31. Ra1 {[%clk 0:00:02]}  Rcc2 {[%clk 0:01:05]} 32. Bd4 {[%clk 0:00:02]}  Rxg2+ {[%clk 0:01:04]} 33. Kf1 {[%clk 0:00:03]}  Rh2 {[%clk 0:00:57]} 0-1


[Site "https://www.chess.com"]

[Event "Titled Tuesday Blitz August 3 2021"]
[White "Maly, Alexey"]
[Black "Flores Quillas, Diego Saul Rodri"]
[WhiteFideId "14103184"]
[BlackFideId "3822508"]
[WhiteElo "2285"]
[BlackElo "2071"]
[Result "0-1"]
[Round "02"]
[TimeControl "180+1"]
[Date "2021.08.03"]
[WhiteClock "0:01:59"]
[BlackClock "0:01:02"]

1. d4 {[%clk 0:03:00]}  Nf6 {[%clk 0:02:47]} 2. c4 {[%clk 0:02:59]}  c5 {[%clk 0:02:42]} 3. d5 {[%clk 0:02:59]}  e6 {[%clk 0:02:42]} 4. Nc3 {[%clk 0:02:58]}  exd5 {[%clk 0:02:43]} 5. cxd5 {[%clk 0:02:59]}  d6 {[%clk 0:02:43]} 6. Nf3 {[%clk 0:02:59]}  g6 {[%clk 0:02:41]} 7. Nd2 {[%clk 0:02:59]}  Nbd7 {[%clk 0:02:33]} 8. g3 {[%clk 0:02:59]}  Bg7 {[%clk 0:02:32]} 9. Bg2 {[%clk 0:02:59]}  O-O {[%clk 0:02:32]} 10. O-O {[%clk 0:02:59]}  a6 {[%clk 0:02:31]} 11. a4 {[%clk 0:02:59]}  Re8 {[%clk 0:02:31]} 12. h3 {[%clk 0:03:00]}  Nh5 {[%clk 0:02:30]} 13. Kh2 {[%clk 0:02:59]}  f5 {[%clk 0:02:30]} 14. e3 {[%clk 0:02:59]}  Rb8 {[%clk 0:02:26]} 15. a5 {[%clk 0:02:59]}  Ne5 {[%clk 0:02:20]} 16. Qc2 {[%clk 0:02:52]}  Qc7 {[%clk 0:01:49]} 17. b3 {[%clk 0:02:51]}  Bd7 {[%clk 0:01:24]} 18. Bb2 {[%clk 0:02:47]}  Bb5 {[%clk 0:01:19]} 19. Nxb5 {[%clk 0:02:46]}  axb5 {[%clk 0:01:20]} 20. Rfc1 {[%clk 0:02:45]}  Ra8 {[%clk 0:01:15]} 21. b4 {[%clk 0:02:42]}  c4 {[%clk 0:01:14]} 22. Rd1 {[%clk 0:02:35]}  Nd3 {[%clk 0:01:11]} 23. Bxg7 {[%clk 0:02:34]}  Qxg7 {[%clk 0:01:12]} 24. Rab1 {[%clk 0:02:31]}  Nxf2 {[%clk 0:01:11]} 25. Rf1 {[%clk 0:02:24]}  Nd3 {[%clk 0:01:12]} 26. e4 {[%clk 0:02:24]}  Qe5 {[%clk 0:01:10]} 27. exf5 {[%clk 0:02:13]}  Qxg3+ {[%clk 0:01:03]} 28. Kh1 {[%clk 0:02:12]}  Re2 {[%clk 0:01:03]} 29. Rg1 {[%clk 0:01:59]}  Nf2# {[%clk 0:01:02]} 0-1


[Site "https://www.chess.com"]

[Event "Titled Tuesday Blitz August 3 2021"]
[White "Ohanyan, Emin"]
[Black "Sarana, Alexey"]
[WhiteFideId "13312022"]
[BlackFideId "24133795"]
[WhiteElo "1648"]
[BlackElo "2646"]
[Result "0-1"]
[Round "02"]
[TimeControl "180+1"]
[Date "2021.08.03"]
[WhiteClock "0:00:02"]
[BlackClock "0:01:36"]

1. e4 {[%clk 0:03:00]}  c5 {[%clk 0:02:54]} 2. Nf3 {[%clk 0:03:00]}  d6 {[%clk 0:02:55]} 3. d4 {[%clk 0:02:59]}  cxd4 {[%clk 0:02:55]} 4. Nxd4 {[%clk 0:03:00]}  Nf6 {[%clk 0:02:56]} 5. Nc3 {[%clk 0:03:00]}  a6 {[%clk 0:02:50]} 6. h3 {[%clk 0:02:56]}  b5 {[%clk 0:02:50]} 7. g4 {[%clk 0:02:55]}  Bb7 {[%clk 0:02:48]} 8. Bg2 {[%clk 0:02:56]}  Nc6 {[%clk 0:02:46]} 9. O-O {[%clk 0:02:49]}  Nxd4 {[%clk 0:02:46]} 10. Qxd4 {[%clk 0:02:49]}  e5 {[%clk 0:02:46]} 11. Qd3 {[%clk 0:02:49]}  Be7 {[%clk 0:02:47]} 12. f4 {[%clk 0:02:48]}  O-O {[%clk 0:02:39]} 13. Be3 {[%clk 0:02:45]}  exf4 {[%clk 0:02:35]} 14. Bxf4 {[%clk 0:02:44]}  Nd7 {[%clk 0:02:36]} 15. Nd5 {[%clk 0:02:35]}  Ne5 {[%clk 0:02:32]} 16. Qg3 {[%clk 0:02:04]}  Bxd5 {[%clk 0:02:31]} 17. exd5 {[%clk 0:02:03]}  Bh4 {[%clk 0:02:28]} 18. Qh2 {[%clk 0:01:51]}  Re8 {[%clk 0:02:28]} 19. Kh1 {[%clk 0:01:50]}  Bg5 {[%clk 0:02:27]} 20. Rae1 {[%clk 0:01:45]}  Bxf4 {[%clk 0:02:26]} 21. Qxf4 {[%clk 0:01:46]}  Rc8 {[%clk 0:02:27]} 22. c3 {[%clk 0:01:40]}  Qh4 {[%clk 0:02:26]} 23. Rxe5 {[%clk 0:01:25]}  dxe5 {[%clk 0:02:27]} 24. Qxf7+ {[%clk 0:01:25]}  Kh8 {[%clk 0:02:28]} 25. d6 {[%clk 0:01:26]}  Rcd8 {[%clk 0:02:27]} 26. d7 {[%clk 0:01:15]}  Rg8 {[%clk 0:02:26]} 27. Kh2 {[%clk 0:00:47]}  Qh6 {[%clk 0:02:26]} 28. Bd5 {[%clk 0:00:43]}  Qd6 {[%clk 0:02:23]} 29. Qe6 {[%clk 0:00:35]}  Qc7 {[%clk 0:01:57]} 30. Rf7 {[%clk 0:00:27]}  e4+ {[%clk 0:01:53]} 31. Kg2 {[%clk 0:00:27]}  Rgf8 {[%clk 0:01:52]} 32. Rxf8+ {[%clk 0:00:15]}  Rxf8 {[%clk 0:01:53]} 33. Bxe4 {[%clk 0:00:10]}  Qf4 {[%clk 0:01:51]} 34. Bf5 {[%clk 0:00:05]}  Qd2+ {[%clk 0:01:46]} 35. Kh1 {[%clk 0:00:03]}  Qc1+ {[%clk 0:01:46]} 36. Kg2 {[%clk 0:00:03]}  Qxb2+ {[%clk 0:01:46]} 37. Kh1 {[%clk 0:00:03]}  Qxc3 {[%clk 0:01:40]} 38. Qe7 {[%clk 0:00:04]}  Qf6 {[%clk 0:01:40]} 39. Qe8 {[%clk 0:00:02]}  Qc6+ {[%clk 0:01:36]} 40. Kg1 {[%clk 0:00:02]}  Rxe8 {[%clk 0:01:36]} 0-1


[Site "https://www.chess.com"]

[Event "Titled Tuesday Blitz August 3 2021"]
[White "Pavlov, Sergey"]
[Black "Obolentseva, Alexandra"]
[WhiteFideId "14114330"]
[BlackFideId "24153648"]
[WhiteElo "2428"]
[BlackElo "2113"]
[Result "1-0"]
[Round "02"]
[TimeControl "180+1"]
[Date "2021.08.03"]
[WhiteClock "0:00:20"]
[BlackClock "0:00:10"]

1. Nf3 {[%clk 0:03:00]}  Nf6 {[%clk 0:02:57]} 2. c4 {[%clk 0:03:00]}  g6 {[%clk 0:02:56]} 3. g3 {[%clk 0:03:00]}  Bg7 {[%clk 0:02:51]} 4. Bg2 {[%clk 0:03:01]}  O-O {[%clk 0:02:49]} 5. d4 {[%clk 0:03:01]}  d6 {[%clk 0:02:48]} 6. O-O {[%clk 0:03:01]}  c5 {[%clk 0:02:48]} 7. d5 {[%clk 0:03:00]}  e6 {[%clk 0:02:46]} 8. dxe6 {[%clk 0:02:58]}  Bxe6 {[%clk 0:02:38]} 9. Ng5 {[%clk 0:02:58]}  Bc8 {[%clk 0:02:13]} 10. Nc3 {[%clk 0:02:57]}  h6 {[%clk 0:02:10]} 11. Nf3 {[%clk 0:02:55]}  Nc6 {[%clk 0:02:08]} 12. Bf4 {[%clk 0:02:52]}  Re8 {[%clk 0:02:03]} 13. Bxd6 {[%clk 0:02:42]}  Be6 {[%clk 0:02:03]} 14. Bxc5 {[%clk 0:02:37]}  Bxc4 {[%clk 0:01:59]} 15. Qa4 {[%clk 0:02:23]}  Bxe2 {[%clk 0:01:41]} 16. Nxe2 {[%clk 0:02:22]}  Rxe2 {[%clk 0:01:42]} 17. Qb5 {[%clk 0:02:19]}  Rc2 {[%clk 0:01:27]} 18. Rad1 {[%clk 0:02:17]}  Qc7 {[%clk 0:01:22]} 19. Nd4 {[%clk 0:02:12]}  Nxd4 {[%clk 0:01:20]} 20. Bxd4 {[%clk 0:02:12]}  Rd8 {[%clk 0:01:12]} 21. Qxb7 {[%clk 0:01:58]}  Qxb7 {[%clk 0:01:07]} 22. Bxb7 {[%clk 0:01:58]}  Ng4 {[%clk 0:01:02]} 23. Be4 {[%clk 0:01:35]}  Rc4 {[%clk 0:00:39]} 24. Bxg7 {[%clk 0:01:32]}  Rxd1 {[%clk 0:00:33]} 25. Rxd1 {[%clk 0:01:33]}  Kxg7 {[%clk 0:00:23]} 26. Bd3 {[%clk 0:01:28]}  Rb4 {[%clk 0:00:22]} 27. b3 {[%clk 0:01:26]}  Ne5 {[%clk 0:00:21]} 28. Be2 {[%clk 0:01:26]}  a5 {[%clk 0:00:20]} 29. Rd5 {[%clk 0:01:24]}  Nc6 {[%clk 0:00:20]} 30. Rc5 {[%clk 0:01:16]}  Nd4 {[%clk 0:00:19]} 31. Bc4 {[%clk 0:01:16]}  a4 {[%clk 0:00:17]} 32. a3 {[%clk 0:00:42]}  Rb7 {[%clk 0:00:11]} 33. bxa4 {[%clk 0:00:42]}  Ra7 {[%clk 0:00:11]} 34. a5 {[%clk 0:00:39]}  Nf3+ {[%clk 0:00:10]} 35. Kg2 {[%clk 0:00:38]}  Nd2 {[%clk 0:00:11]} 36. Bd5 {[%clk 0:00:37]}  Nb1 {[%clk 0:00:10]} 37. a4 {[%clk 0:00:29]}  Na3 {[%clk 0:00:09]} 38. Be4 {[%clk 0:00:21]}  Re7 {[%clk 0:00:08]} 39. f3 {[%clk 0:00:20]}  f5 {[%clk 0:00:07]} 40. Rc3 {[%clk 0:00:19]}  fxe4 {[%clk 0:00:07]} 41. Rxa3 {[%clk 0:00:19]}  exf3+ {[%clk 0:00:08]} 42. Kxf3 {[%clk 0:00:19]}  Ra7 {[%clk 0:00:08]} 43. a6 {[%clk 0:00:18]}  Rxa6 {[%clk 0:00:09]} 44. a5 {[%clk 0:00:18]}  g5 {[%clk 0:00:09]} 45. Ke4 {[%clk 0:00:18]}  Kg6 {[%clk 0:00:09]} 46. Kd5 {[%clk 0:00:19]}  h5 {[%clk 0:00:09]} 47. Kc5 {[%clk 0:00:19]}  Ra8 {[%clk 0:00:10]} 48. a6 {[%clk 0:00:19]}  h4 {[%clk 0:00:09]} 49. a7 {[%clk 0:00:18]}  hxg3 {[%clk 0:00:08]} 50. hxg3 {[%clk 0:00:18]}  Kf5 {[%clk 0:00:09]} 51. Kb6 {[%clk 0:00:19]}  Kg4 {[%clk 0:00:10]} 52. Kb7 {[%clk 0:00:19]}  Rh8 {[%clk 0:00:10]} 53. a8=Q {[%clk 0:00:19]}  Rxa8 {[%clk 0:00:10]} 54. Kxa8 {[%clk 0:00:20]} 1-0


[Site "https://www.chess.com"]

[Event "Titled Tuesday Blitz August 3 2021"]
[White "Peralta, Eduardo"]
[Black "Martinez Alcantara, Jose Eduardo"]
[WhiteFideId "3700062"]
[BlackFideId "3805662"]
[WhiteElo "2205"]
[BlackElo "2690"]
[Result "0-1"]
[Round "02"]
[TimeControl "180+1"]
[Date "2021.08.03"]
[WhiteClock "0:00:01"]
[BlackClock "0:02:33"]

1. d4 {[%clk 0:00:12]}  Nf6 {[%clk 0:02:58]} 2. Nf3 {[%clk 0:00:13]}  e6 {[%clk 0:02:56]} 3. c3 {[%clk 0:00:14]}  c5 {[%clk 0:02:56]} 4. Bg5 {[%clk 0:00:11]}  b6 {[%clk 0:02:55]} 5. e3 {[%clk 0:00:10]}  Bb7 {[%clk 0:02:56]} 6. Nbd2 {[%clk 0:00:11]}  Be7 {[%clk 0:02:56]} 7. Be2 {[%clk 0:00:11]}  h6 {[%clk 0:02:56]} 8. Bh4 {[%clk 0:00:10]}  d6 {[%clk 0:02:56]} 9. O-O {[%clk 0:00:11]}  Nbd7 {[%clk 0:02:57]} 10. Bd3 {[%clk 0:00:11]}  O-O {[%clk 0:02:57]} 11. Qe2 {[%clk 0:00:11]}  cxd4 {[%clk 0:02:58]} 12. exd4 {[%clk 0:00:11]}  a6 {[%clk 0:02:57]} 13. Bg3 {[%clk 0:00:10]}  Qc7 {[%clk 0:02:56]} 14. Ne4 {[%clk 0:00:10]}  Nxe4 {[%clk 0:02:56]} 15. Bxe4 {[%clk 0:00:11]}  Nf6 {[%clk 0:02:56]} 16. Bxb7 {[%clk 0:00:10]}  Qxb7 {[%clk 0:02:57]} 17. Rfe1 {[%clk 0:00:10]}  b5 {[%clk 0:02:57]} 18. a3 {[%clk 0:00:10]}  Rfe8 {[%clk 0:02:56]} 19. Nd2 {[%clk 0:00:11]}  a5 {[%clk 0:02:52]} 20. Ne4 {[%clk 0:00:11]}  Nxe4 {[%clk 0:02:51]} 21. Qxe4 {[%clk 0:00:12]}  Qxe4 {[%clk 0:02:45]} 22. Rxe4 {[%clk 0:00:12]}  d5 {[%clk 0:02:46]} 23. Ree1 {[%clk 0:00:12]}  b4 {[%clk 0:02:46]} 24. axb4 {[%clk 0:00:11]}  axb4 {[%clk 0:02:47]} 25. f3 {[%clk 0:00:09]}  Rec8 {[%clk 0:02:47]} 26. Rxa8 {[%clk 0:00:06]}  Rxa8 {[%clk 0:02:48]} 27. cxb4 {[%clk 0:00:02]}  Ra2 {[%clk 0:02:40]} 28. Rb1 {[%clk 0:00:03]}  Bxb4 {[%clk 0:02:39]} 29. Kf2 {[%clk 0:00:02]}  Bc3 {[%clk 0:02:34]} 30. Ke3 {[%clk 0:00:02]}  Bxb2 {[%clk 0:02:34]} 31. Be1 {[%clk 0:00:02]}  Ra3+ {[%clk 0:02:33]} 32. Ke2 {[%clk 0:00:01]}  Bxd4 {[%clk 0:02:33]} 0-1


[Site "https://www.chess.com"]

[Event "Titled Tuesday Blitz August 3 2021"]
[White "Ponikarovsky, Alexey"]
[Black "Baskin, Robert"]
[WhiteFideId "4122887"]
[BlackFideId "24662402"]
[WhiteElo "1944"]
[BlackElo "2462"]
[Result "1-0"]
[Round "02"]
[TimeControl "180+1"]
[Date "2021.08.03"]
[WhiteClock "0:02:26"]
[BlackClock "0:01:03"]

1. e4 {[%clk 0:03:00]}  c5 {[%clk 0:02:59]} 2. d4 {[%clk 0:03:01]}  cxd4 {[%clk 0:02:58]} 3. Nf3 {[%clk 0:03:02]}  d6 {[%clk 0:02:55]} 4. Bc4 {[%clk 0:03:02]}  Nf6 {[%clk 0:02:52]} 5. Qe2 {[%clk 0:03:02]}  Nc6 {[%clk 0:02:52]} 6. h3 {[%clk 0:03:03]}  g6 {[%clk 0:02:48]} 7. O-O {[%clk 0:03:03]}  Bg7 {[%clk 0:02:48]} 8. Rd1 {[%clk 0:03:04]}  O-O {[%clk 0:02:42]} 9. c3 {[%clk 0:03:04]}  dxc3 {[%clk 0:02:37]} 10. Nxc3 {[%clk 0:03:05]}  Bd7 {[%clk 0:02:35]} 11. Bf4 {[%clk 0:03:04]}  Qa5 {[%clk 0:02:32]} 12. Nb5 {[%clk 0:03:02]}  a6 {[%clk 0:02:30]} 13. Bd2 {[%clk 0:03:01]}  Qd8 {[%clk 0:02:29]} 14. Nc3 {[%clk 0:03:00]}  Rc8 {[%clk 0:02:27]} 15. Bf4 {[%clk 0:02:58]}  Qa5 {[%clk 0:02:26]} 16. Bd2 {[%clk 0:02:55]}  Qh5 {[%clk 0:02:26]} 17. Qe3 {[%clk 0:02:50]}  Na5 {[%clk 0:01:53]} 18. Be2 {[%clk 0:02:43]}  Nc4 {[%clk 0:01:53]} 19. Bxc4 {[%clk 0:02:40]}  Rxc4 {[%clk 0:01:54]} 20. e5 {[%clk 0:02:41]}  dxe5 {[%clk 0:01:52]} 21. Nxe5 {[%clk 0:02:42]}  Rc7 {[%clk 0:01:51]} 22. Rac1 {[%clk 0:02:38]}  Be6 {[%clk 0:01:47]} 23. Nd3 {[%clk 0:02:38]}  Rd8 {[%clk 0:01:18]} 24. Nf4 {[%clk 0:02:37]}  Qf5 {[%clk 0:01:16]} 25. Qb6 {[%clk 0:02:35]}  Rcd7 {[%clk 0:01:13]} 26. Be3 {[%clk 0:02:34]}  Nd5 {[%clk 0:01:02]} 27. Nfxd5 {[%clk 0:02:29]}  Bxd5 {[%clk 0:01:02]} 28. Nxd5 {[%clk 0:02:27]}  Rxd5 {[%clk 0:01:03]} 29. Qxd8+ {[%clk 0:02:26]} 1-0


[Site "https://www.chess.com"]